Workbook

Sheet INFORMATION (hidden)
A1: 2023 Full Cost Temporary M&I Water Rates Sch TR-2a.Z25.XLSM
A2: 01/03/2023
A3: CENTRAL VALLEY PROJECT
A4: SCHEDULE OF M&I TEMPORARY FULL COST CONSTRUCTION COST (INCLUDING INTEREST) PER ACRE-FOOT
A5: 2023 SPECIAL WATER RATES
C7: SPECIAL FILE INFORMATION
C10: SOURCE DATA:
A25: 10/25/2022 | B25: rm | C25: Updated file names, title, headings, and date. Updated input tab links
C26: Updated Input tab links
C27: Verified Sch TR-2a Output tab with Sch TR-2b Output tab
C28: Ready for review
A29: 01/03/2023 | B29: KJ | C29: Review

Sheet Input (hidden)
D8: Construction Only | E8: Interest
C10: Other Cost | D10: =[1]OUTPUT!$U$86 -> 0.49 | E10: =[1]OUTPUT!$W$86 -> 0.39
B11: Storage
C12: Storge - All Others | D12: =[1]OUTPUT!$U$19 -> 0.88 | E12: =[1]OUTPUT!$W$19 -> 0.71
C13: Storge - San Felipe Unit | D13: =[1]OUTPUT!$U$18 -> 0.58 | E13: =[1]OUTPUT!$W$18 -> 0.46
B15: Conveyance
C16: Conveyance | D16: =[1]OUTPUT!$U$26 -> 0.82 | E16: =[1]OUTPUT!$W$26 -> 0.66
B18: Conveyance Pumping
C19: Jones PP - All Others | D19: =[1]OUTPUT!$U$51 -> 0.51 | E19: =[1]OUTPUT!$W$51 -> 0.41
C20: Jones PP - FKC & MC | D20: =[1]OUTPUT!$U$46 -> 0.62 | E20: =[1]OUTPUT!$W$46 -> 0.49
C22: O'Neill PP | D22: =[1]OUTPUT!$U$40 -> 0.18 | E22: =[1]OUTPUT!$W$40 -> 0.14
C24: Dos Amigos PP | D24: =[1]OUTPUT!$U$35 -> 0.36 | E24: =[1]OUTPUT!$W$35 -> 0.29
C26: Cross Valley Canal | D26: =[1]OUTPUT!$U$34 -> 0.24 | E26: =[1]OUTPUT!$W$34 -> 0.19
C27: (State Delta Pumping Plant)
B29: Direct Pumping
C30: Musco Olive & Tracy Golf & Country Club | D30: =[1]OUTPUT!$U$76 -> 0.29 | E30: =[1]OUTPUT!$W$76 -> 0.23
C31: (State Delta Pumping Plant)
C33: Coalinga Canal | D33: =[1]OUTPUT!$U$60+[1]OUTPUT!$U$61 -> 0.24 | E33: =[1]OUTPUT!$W$60+[1]OUTPUT!$W$61 -> 0.2
C34: (Pleasant Valley Pumping Plant)
C36: San Felipe Unit:
C37: San Benito (before Coyote Pumping Plant) | D37: =[1]OUTPUT!$U$65 -> 0.61 | E37: =[1]OUTPUT!$W$65 -> 0.49
C38: Santa Clara (after Coyote Pumping Plant) | D38: =[1]OUTPUT!$U$72 -> 0.92 | E38: =[1]OUTPUT!$W$72 -> 0.74
C40: Cross Valley Canal | D40: =[1]OUTPUT!$U$76 -> 0.29 | E40: =[1]OUTPUT!$W$76 -> 0.23
C41: (State Delta Pumping Plant)

Sheet Macro Input (hidden)
B3: create a macro for this. Pull output tab from TR-2b

Sheet Output
A2: =INFORMATION!A1 -> 2023 Full Cost Temporary M&I Water Rates Sch TR-2a.Z25.XLSM
A3: =INFORMATION!A2 -> 01/03/2023
A4: =INFORMATION!A3 -> CENTRAL VALLEY PROJECT
A5: =INFORMATION!A4 -> SCHEDULE OF M&I TEMPORARY FULL COST CONSTRUCTION COST (INCLUDING INTEREST) PER ACRE-FOOT
A6: =INFORMATION!A5 -> 2023 SPECIAL WATER RATES
A9: Category | B9: A) Service Area / Contractor | C9: B) Other Costs <Sch TR-2b> | D9: C) Storage <Sch TR-2b> | E9: D) Conveyance <Sch TR-2b> | F9: E) Conveyance Pumping Corning PP <Sch TR-2b> | G9: F) Conveyance Pumping Jones Pumping Plant Friant-Kern Madera <Sch TR-2b> | H9: G) Conveyance Pumping Jones Pumping Plant All Others <Sch TR-2b> | I9: H) Conveyance Pumping O'Neill PGP <Sch TR-2b> | J9: I) Conveyance Pumping Dos Amigos PP <Sch TR-2b> | K9: J) Direct Pumping <Sch TR-2b> | L9: K) Total SUM(B:J)
A10: M&I Construction Cost per AF (including interest): | B10: 1. Sacramento, American, Stanislaus, San Joaquin Rivers & the Delta | C10: =+C23+C36 -> 0.88 | D10: 1.59 | E10: - | F10: - | G10: - | H10: - | I10: - | J10: - | K10: - | L10: =SUM(C10:K10) -> 2.47
A11: M&I Construction Cost per AF (including interest): | B11: 2. Delta-Mendota Canal and Pool | C11: 0.88 | D11: 1.59 | E11: =+E24+E37 -> 1.48 | F11: - | G11: - | H11: =+H24+H37 -> 0.92 | I11: - | J11: - | K11: - | L11: =SUM(C11:K11) -> 4.87
A12: M&I Construction Cost per AF (including interest): | B12: 3. Folsom-South Canal, Toyon Pipeline and Tehama-Colusa Canal | C12: 0.88 | D12: 1.59 | E12: =+E25+E38 -> 1.48 | F12: - | G12: - | H12: - | I12: - | J12: - | K12: - | L12: 3.95
A13: M&I Construction Cost per AF (including interest): | B13: 4. Musco Olive & Tracy Golf & Country Club (State Delta Pumping Plant) 1/ | C13: 0.88 | D13: 1.59 | E13: - | F13: - | G13: - | H13: - | I13: - | J13: - | K13: =+K26+K39 -> 0.52 | L13: 2.99
A14: M&I Construction Cost per AF (including interest): | B14: 5. Friant Dam | C14: 0.88 | D14: 1.59 | E14: - | F14: - | G14: =+G27+G40 -> 1.11 | H14: - | I14: - | J14: - | K14: - | L14: 3.58
A15: M&I Construction Cost per AF (including interest): | B15: 6. Friant-Kern & Madera Canals | C15: 0.88 | D15: 1.59 | E15: =+E28+E41 -> 1.48 | G15: =+G28+G41 -> 1.11 | H15: - | I15: - | J15: - | K15: - | L15: 5.06
A16: M&I Construction Cost per AF (including interest): | B16: 7. San Luis Canal: Before Dos Amigos Pumping Plant | C16: 0.88 | D16: 1.59 | E16: 1.48 | F16: - | G16: - | H16: =+H29+H42 -> 0.92 | I16: 0.32 | J16: - | K16: - | L16: 5.19
A17: M&I Construction Cost per AF (including interest): | B17: 7. San Luis Canal: After Dos Amigos Pumping Plant | C17: 0.88 | D17: 1.59 | E17: 1.48 | F17: - | G17: - | H17: 0.92 | I17: 0.32 | J17: =+J30+J43 -> 0.65 | L17: 5.84
A18: M&I Construction Cost per AF (including interest): | B18: 8. Coalinga Canal (Pleasant Valley Pumping Plant) 2/ | C18: 0.88 | D18: 1.59 | E18: 1.48 | F18: - | G18: - | H18: 0.92 | I18: 0.32 | J18: =+J31+J44 -> 0.65 | K18: =+K31+K44 -> 0.44 | L18: 6.28
A19: M&I Construction Cost per AF (including interest): | B19: 9. San Felipe Unit: San Benito (before Coyote Pumping Plant) 3/ | C19: 0.88 | D19: 1.04 | E19: 1.48 | F19: - | G19: - | H19: 0.92 | I19: 0.32 | K19: =+K32+K45 -> 1.1 | L19: 5.74
A20: M&I Construction Cost per AF (including interest): | B20: 9. Santa Clara (after Coyote Pumping Plant) 4/ | C20: 0.88 | D20: 1.04 | E20: 1.48 | F20: - | G20: - | H20: 0.92 | I20: 0.32 | K20: =+K33+K46 -> 1.66 | L20: 6.3
A21: M&I Construction Cost per AF (including interest): | B21: 10. M&I Construction Cost per AF (including interest): Cross Valley Canal (State Delta Pumping Plant) 5/ | C21: 0.88 | D21: 1.59 | E21: - | F21: - | G21: - | H21: - | I21: - | J21: =+J34+J47 -> 0.43 | K21: =+K34+K47 -> 0.52 | L21: 3.42
A22: Total | B22: - | C22: - | D22: - | E22: - | F22: - | G22: - | H22: - | I22: - | J22: - | K22: - | L22: -
A23: M&I Construction Rates (excluding interest): | B23: 1. Sacramento, American, Stanislaus, San Joaquin Rivers & the Delta. | C23: =Input!D10 -> 0.49 | D23: =Input!D12 -> 0.88 | E23: - | F23: - | G23: - | H23: - | I23: - | J23: - | K23: - | L23: =SUM(C23:K23) -> 1.37
A24: M&I Construction Rates (excluding interest): | B24: 2. Delta-Mendota Canal and Pool | C24: =$C$23 -> 0.49 | D24: =$D$23 -> 0.88 | E24: =Input!D16 -> 0.82 | F24: - | G24: - | H24: =Input!D19 -> 0.51 | I24: - | J24: - | K24: - | L24: 2.7
A25: M&I Construction Rates (excluding interest): | B25: 3. Folsom-South Canal , Toyon Pipeline and Tehama-Colusa Canal | C25: 0.49 | D25: 0.88 | E25: =$E$24 -> 0.82 | F25: - | G25: - | H25: - | I25: - | J25: - | K25: - | L25: 2.19
A26: M&I Construction Rates (excluding interest): | B26: 4. Musco Olive & Tracy Golf & Country Club (State Delta Pumping Plant) 1/ | C26: 0.49 | D26: 0.88 | E26: - | F26: - | G26: - | H26: - | I26: - | J26: - | K26: =Input!D30 -> 0.29 | L26: 1.66
A27: M&I Construction Rates (excluding interest): | B27: 5. Friant Dam | C27: 0.49 | D27: 0.88 | E27: - | F27: - | G27: =Input!D20 -> 0.62 | H27: - | I27: - | J27: - | K27: - | L27: 1.99
A28: M&I Construction Rates (excluding interest): | B28: 6. Friant-Kern & Madera Canals | C28: 0.49 | D28: 0.88 | E28: =$E$24 -> 0.82 | G28: =G27 -> 0.62 | H28: - | I28: - | J28: - | K28: - | L28: 2.81
A29: M&I Construction Rates (excluding interest): | B29: 7. San Luis Canal: Before Dos Amigos Pumping Plant | C29: 0.49 | D29: 0.88 | E29: 0.82 | F29: - | G29: - | H29: =$H$24 -> 0.51 | I29: =Input!D22 -> 0.18 | J29: - | K29: - | L29: 2.88
A30: M&I Construction Rates (excluding interest): | B30: 7. San Luis Canal: After Dos Amigos Pumping Plant | C30: 0.49 | D30: 0.88 | E30: 0.82 | F30: - | G30: - | H30: =$H$24 -> 0.51 | I30: =$I$29 -> 0.18 | J30: =Input!D24 -> 0.36 | K30: - | L30: 3.24
A31: M&I Construction Rates (excluding interest): | B31: 8. Coalinga Canal (Pleasant Valley Pumping Plant) 2/ | C31: 0.49 | D31: 0.88 | E31: 0.82 | F31: - | G31: - | H31: =$H$24 -> 0.51 | I31: =$I$29 -> 0.18 | J31: =J30 -> 0.36 | K31: =Input!D33 -> 0.24 | L31: 3.48
A32: M&I Construction Rates (excluding interest): | B32: 9. San Felipe Unit: San Benito (before Coyote Pumping Plant) 3/ | C32: 0.49 | D32: =Input!D13 -> 0.58 | E32: 0.82 | F32: - | G32: - | H32: =$H$24 -> 0.51 | I32: =$I$29 -> 0.18 | K32: =Input!D37 -> 0.61 | L32: 3.19
A33: M&I Construction Rates (excluding interest): | B33: 9. San Felipe Unit: Santa Clara (after Coyote Pumping Plant) 4/ | C33: 0.49 | D33: =D32 -> 0.58 | E33: 0.82 | F33: - | G33: - | H33: =$H$24 -> 0.51 | I33: =$I$29 -> 0.18 | K33: =Input!D38 -> 0.92 | L33: 3.5
A34: M&I Construction Rates (excluding interest): | B34: 10. Cross Valley Canal (State Delta Pumping Plant) 5/ | C34: 0.49 | D34: =$D$23 -> 0.88 | F34: - | G34: - | H34: - | I34: - | J34: =Input!D26 -> 0.24 | K34: =Input!D40 -> 0.29 | L34: 1.9
A35: Total | B35: - | C35: - | D35: - | E35: - | F35: - | G35: - | H35: - | I35: - | J35: - | K35: - | L35: -
A36: M&I Construction Interest Cost/AF: | B36: 1. Sacramento, American, Stanislaus, San Joaquin Rivers & the Delta | C36: =Input!E10 -> 0.39 | D36: =Input!E12 -> 0.71 | E36: - | F36: - | G36: - | H36: - | I36: - | J36: - | K36: - | L36: =SUM(C36:K36) -> 1.1
A37: M&I Construction Interest Cost/AF: | B37: 2. Delta-Mendota Canal and Pool | C37: =$C$36 -> 0.39 | D37: =$D$36 -> 0.71 | E37: =Input!E16 -> 0.66 | F37: - | G37: - | H37: =Input!E19 -> 0.41 | I37: - | J37: - | L37: 2.17
A38: M&I Construction Interest Cost/AF: | B38: 3. Folsom-South Canal , Toyon Pipeline and Tehama-Colusa Canal | C38: 0.39 | D38: 0.71 | E38: =$E$37 -> 0.66 | F38: - | G38: - | H38: - | I38: - | J38: - | L38: 1.76
A39: M&I Construction Interest Cost/AF: | B39: 4. Musco Olive & Tracy Golf & Country 1/ Club (State Delta Pumping Plant) | C39: 0.39 | D39: 0.71 | E39: - | F39: - | G39: - | H39: - | I39: - | J39: - | K39: =Input!E30 -> 0.23 | L39: 1.33
A40: M&I Construction Interest Cost/AF: | B40: 5. Friant Dam | C40: 0.39 | D40: 0.71 | E40: - | F40: - | G40: =Input!E20 -> 0.49 | H40: - | I40: - | J40: - | K40: - | L40: 1.59
A41: M&I Construction Interest Cost/AF: | B41: 6. Friant-Kern & Madera Canals | C41: 0.39 | D41: 0.71 | E41: =$E$37 -> 0.66 | F41: - | G41: =G40 -> 0.49 | H41: - | I41: - | J41: - | K41: - | L41: 2.25
A42: M&I Construction Interest Cost/AF: | B42: 7. San Luis Canal: Before Dos Amigos Pumping Plant | C42: 0.39 | D42: 0.71 | E42: 0.66 | F42: - | G42: - | H42: =$H$37 -> 0.41 | I42: =Input!E22 -> 0.14 | J42: - | K42: - | L42: 2.31
A43: M&I Construction Interest Cost/AF: | B43: 7. San Luis Canal: After Dos Amigos Pumping Plant | C43: 0.39 | D43: 0.71 | E43: 0.66 | F43: - | G43: - | H43: =$H$37 -> 0.41 | I43: =$I$42 -> 0.14 | J43: =Input!E24 -> 0.29 | K43: - | L43: 2.6
A44: M&I Construction Interest Cost/AF: | B44: 8. Coalinga Canal (Pleasant Valley Pumping Plant) 2/ | C44: 0.39 | D44: 0.71 | E44: 0.66 | F44: - | G44: - | H44: =$H$37 -> 0.41 | I44: =$I$42 -> 0.14 | J44: =J43 -> 0.29 | K44: =Input!E33 -> 0.2 | L44: 2.8
A45: M&I Construction Interest Cost/AF: | B45: 9. San Felipe Unit: San Benito (before Coyote Pumping Plant) 3/ | C45: 0.39 | D45: =Input!E13 -> 0.46 | E45: 0.66 | F45: - | G45: - | H45: =$H$37 -> 0.41 | I45: =$I$42 -> 0.14 | J45: - | K45: =Input!E37 -> 0.49 | L45: 2.55
A46: M&I Construction Interest Cost/AF: | B46: 9. San Felipe Unit: Santa Clara (after Coyote Pumping Plant) 4/ | C46: 0.39 | D46: =D45 -> 0.46 | E46: 0.66 | F46: - | G46: - | H46: =$H$37 -> 0.41 | I46: =$I$42 -> 0.14 | J46: - | K46: =Input!E38 -> 0.74 | L46: 2.8
A47: M&I Construction Interest Cost/AF: | B47: 10. Cross Valley Canal (State Delta Pumping Plant) 5/ | C47: 0.39 | D47: =$D$36 -> 0.71 | E47: - | F47: - | G47: - | H47: - | I47: - | J47: =Input!E26 -> 0.19 | K47: =Input!E40 -> 0.23 | L47: 1.52

Sheet Footnotes
A1: =INFORMATION!A1 -> 2023 Full Cost Temporary M&I Water Rates Sch TR-2a.Z25.XLSM
A2: =INFORMATION!A2 -> 01/03/2023
A3: =INFORMATION!A3 -> CENTRAL VALLEY PROJECT
A4: =INFORMATION!A4 -> SCHEDULE OF M&I TEMPORARY FULL COST CONSTRUCTION COST (INCLUDING INTEREST) PER ACRE-FOOT
A5: =INFORMATION!A5 -> 2023 SPECIAL WATER RATES
A7: Footnotes:
A9: 1/ Storage and project use energy at State-Delta Pumping Plant
A11: 2/ Direct Pumping from Pleasant Valley Pumping Plant (City of Coalinga).
A13: 3/ Direct Pumping from Wm. R. Gianelli Pump/Generator and Pacheco PP
A15: 4/ Direct Pumping from W.R. Gianelli Pump/Generator, Pacheco PP, and Coyote PP
A17: 5/ Effective March 1, 1996, Cross Valley Canal contract water is pumped and delivered through the State and/or State's side of joint-use facilities.Therefore, (1) these contractors will no longer be allocated Conveyance costs; and (2) Conveyance Pumping and Direct Pumping costs will be limited to Project Use Energy only.
